fUSD/lending_fUSD_20251001
["ID","MTS","AMOUNT","RATE_DAILY","PERIOD"]
[388669886,1759313440503,-21062.91127122,0.00020951,2]
[388669888,1759313440515,-14804.79854652,0.00020951,2]
[388669892,1759313440547,-8640.4905588,0.00020951,2]
[388669915,1759313440748,-1368.41862361,0.00020951,2]
[388669918,1759313440771,-19743.6845744,0.00020951,2]
[388670179,1759313443338,-500.0,0.00020951,2]
[388670181,1759313443350,-491.243374,0.00020951,2]
[388670186,1759313443387,-27105.52446628,0.00020951,2]
[388670188,1759313443398,-9999.99,0.00020951,2]
[388670189,1759313443407,-999.99,0.00020951,2]
[388670191,1759313443416,-9999.99,0.00020951,2]
[388670193,1759313443424,-3122.34,0.00020951,2]
[388670195,1759313443434,-500.0,0.00020966,2]
[388670197,1759313443442,-240.0,0.00020986,2]
[388670199,1759313443451,-158.0,0.0002103,2]
[388670201,1759313443460,-154.5,0.00021077,2]
[388670203,1759313443469,-355.0,0.00021092,2]
[388670205,1759313443478,-1706.75,0.00021173,2]
[388670207,1759313443487,-150.0,0.00021192,4]
[388670210,1759313443496,-529.55523451,0.00021192,2]
[388670212,1759313443507,-6853.1439175,0.000212,2]
[388670214,1759313443515,-9456.7904723,0.000212,2]
[388670215,1759313443525,-2500.0,0.00021202,4]
[388670217,1759313443534,-2002.03,0.0002121,2]
[388670219,1759313443543,-161.493,0.0002121,2]
[388670222,1759313443553,-864.35882268,0.00021259,2]
[388670224,1759313443562,-150.0,0.00021316,4]
[388670225,1759313443571,-150.0,0.00021316,4]
[388670227,1759313443579,-150.0,0.00021316,4]
[388670229,1759313443588,-355.0,0.00021332,2]
[388670231,1759313443597,-355.0,0.00021396,2]
[388670233,1759313443606,-150.0,0.00021441,4]
[388670235,1759313443615,-355.0,0.00021443,2]
[388670238,1759313443626,-1706.75,0.00021447,2]
[388670239,1759313443635,-477.2,0.00021474,2]
[388670242,1759313443645,-1090.0,0.00021524,2]
[388670244,1759313443654,-355.0,0.00021558,2]
[388670246,1759313443663,-154.5,0.00021612,2]
[388670248,1759313443672,-1425.0,0.00021655,2]
[388670250,1759313443681,-1425.0,0.00021659,2]
[388670252,1759313443690,-1425.0,0.00021659,2]
[388670254,1759313443699,-1000.0,0.00021659,2]
[388670256,1759313443708,-1425.0,0.00021663,2]
[388670258,1759313443718,-176.82398337,0.00021669,2]
[388670259,1759313443728,-1000.0,0.00021674,2]
[388670261,1759313443737,-1425.0,0.00021674,2]
[388670264,1759313443747,-518.09454897,0.00021676,2]
[388670266,1759313443756,-1425.0,0.00021677,2]
[388670268,1759313443765,-1425.0,0.00021679,2]
[388670270,1759313443775,-156.87,0.00021681,2]
[388670272,1759313443784,-1425.0,0.00021689,2]
[388670274,1759313443793,-150.0,0.0002169,4]
[388670276,1759313443801,-150.0,0.0002169,4]
[388670278,1759313443811,-150.0,0.0002169,4]
[388670280,1759313443820,-150.0,0.0002169,4]
[388670282,1759313443829,-150.0,0.0002169,4]
[388670284,1759313443838,-150.0,0.0002169,4]
[388670286,1759313443847,-150.0,0.0002169,4]
[388670288,1759313443856,-1000.0,0.00021691,2]
[388670290,1759313443865,-619.06601989,0.00021692,2]
[388670292,1759313443874,-9104.48377084,0.000217,2]
[388670294,1759313443883,-1000.0,0.000217,2]
[388670296,1759313443892,-150.0,0.00021703,2]
[388670298,1759313443903,-253.46047172,0.00021706,2]
[388670300,1759313443913,-1000.0,0.00021709,2]
[388670302,1759313443926,-1425.0,0.00021709,2]
[388670304,1759313443936,-1425.0,0.00021715,2]
[388670306,1759313443945,-6505.5687479,0.00021717,2]
[388670308,1759313443954,-1706.75,0.00021721,2]
[388670310,1759313443963,-1425.0,0.00021726,2]
[388670312,1759313443973,-1000.0,0.00021727,2]
[388670314,1759313443982,-1425.0,0.00021732,2]
[388670316,1759313443991,-1000.0,0.00021732,2]
[388670318,1759313444000,-1425.0,0.00021735,2]
[388670320,1759313444010,-150.0,0.00021737,2]
[388670321,1759313444019,-1425.0,0.00021739,2]
[388670324,1759313444029,-1000.0,0.0002174,2]
[388670326,1759313444038,-1425.0,0.00021743,2]
[388670328,1759313444047,-5050.46927067,0.00021747,2]
[388670330,1759313444056,-1425.0,0.00021748,2]
[388670332,1759313444065,-1425.0,0.0002175,2]
[388670334,1759313444074,-1000.0,0.0002175,2]
[388670336,1759313444083,-285.59895431,0.00021754,2]
[388670337,1759313444092,-3133.3540446,0.00021756,2]
[388670339,1759313444101,-1425.0,0.00021756,2]
[388670342,1759313444110,-1000.0,0.00021757,2]
[388670344,1759313444119,-1000.0,0.00021758,2]
[388670346,1759313444129,-1000.0,0.00021761,2]
[388670348,1759313444138,-1000.0,0.00021762,2]
[388670350,1759313444147,-1425.0,0.00021764,2]
[388670352,1759313444156,-150.0,0.00021764,2]
[388670354,1759313444165,-150.0,0.00021764,2]
[388670355,1759313444174,-1425.0,0.00021765,2]
[388670357,1759313444183,-1425.0,0.00021765,2]
[388670359,1759313444192,-1425.0,0.00021766,2]
[388670361,1759313444202,-12500.0,0.00021767,4]
[388670364,1759313444211,-1425.0,0.00021769,2]
[388670366,1759313444220,-1425.0,0.00021773,2]
[388670367,1759313444230,-240.0,0.00021773,2]
[388670370,1759313444240,-1425.0,0.0002178,2]
[388670372,1759313444249,-1000.0,0.00021782,2]
[388670373,1759313444258,-1000.0,0.00021783,2]
[388670376,1759313444267,-5050.46927059,0.00021785,2]
[388670378,1759313444277,-1425.0,0.00021786,2]
[388670379,1759313444286,-1425.0,0.00021787,2]
[388670382,1759313444295,-6505.5687479,0.00021789,2]
[388670384,1759313444305,-1425.0,0.00021793,2]
[388670386,1759313444318,-1425.0,0.00021794,2]
[388670388,1759313444327,-150.0,0.00021794,2]
[388670390,1759313444336,-1425.0,0.00021795,2]
[388670391,1759313444346,-2500.0,0.00021796,4]
[388670393,1759313444356,-1425.0,0.00021798,2]
[388670395,1759313444365,-1425.0,0.00021801,2]
[388670397,1759313444375,-1000.0,0.00021804,2]
[388670399,1759313444385,-1425.0,0.00021809,2]
[388670401,1759313444395,-1000.0,0.00021811,2]
[388670403,1759313444404,-151.28640845,0.00021816,2]
[388670405,1759313444413,-5000.0,0.00021817,2]
[388670407,1759313444422,-390.5899624,0.00021817,2]
[388670409,1759313444431,-161.87330252,0.00021817,2]
[388670411,1759313444440,-5050.46927059,0.00021823,2]
[388670413,1759313444448,-401.54001121,0.00021825,2]
[388670415,1759313444457,-1425.0,0.00021828,2]
[388670417,1759313444466,-476.89774853,0.0002183,2]
[388670419,1759313444475,-150.0,0.00021838,2]
[388670421,1759313444484,-1000.0,0.00021839,2]
[388670423,1759313444493,-150.0,0.00021839,2]
[388670425,1759313444501,-1425.0,0.00021844,2]
[388670427,1759313444511,-1425.0,0.00021846,2]
[388670429,1759313444519,-176.82398333,0.00021847,2]
[388670431,1759313444529,-150.0,0.00021848,2]
[388670433,1759313444538,-1000.0,0.0002185,2]
[388670435,1759313444548,-150.0,0.0002185,2]
[388670437,1759313444557,-1425.0,0.0002185,2]
[388670439,1759313444566,-1000.0,0.00021857,2]
[388670441,1759313444575,-1425.0,0.00021857,2]
[388670443,1759313444584,-1425.0,0.0002186,2]
[388670445,1759313444593,-6505.5687479,0.00021861,2]
[388670447,1759313444602,-5050.46927059,0.00021862,2]
[388670449,1759313444611,-1000.0,0.00021864,2]
[388670450,1759313444620,-150.0,0.00021868,2]
[388670451,1759313444629,-260.49478334,0.00021869,2]
[388670452,1759313444639,-150.0,0.00021875,2]
[388670453,1759313444647,-1425.0,0.00021877,2]
[388670454,1759313444656,-1425.0,0.00021884,2]
[388670455,1759313444665,-355.0,0.00021888,2]
[388670456,1759313444674,-500.0,0.0002189,2]
[388670457,1759313444683,-151.25546447,0.00021891,2]
[388670458,1759313444692,-150.0,0.00021891,2]
[388670459,1759313444701,-488.0,0.00021891,2]
[388670460,1759313444709,-150.0,0.00021891,2]
[388670461,1759313444718,-150.0,0.00021891,2]
[388670462,1759313444727,-500.0,0.00021891,2]
[388670463,1759313444736,-150.0,0.00021891,2]
[388670464,1759313444745,-150.0,0.00021891,2]
[388670465,1759313444754,-150.51627255,0.00021891,2]
[388670467,1759313444763,-203.88058198,0.00021891,2]
[388670469,1759313444772,-153.19012935,0.00021891,2]
[388670471,1759313444781,-150.0,0.00021891,2]
[388670473,1759313444790,-150.0,0.00021891,2]
[388670475,1759313444799,-150.0,0.00021891,2]
[388670477,1759313444808,-150.0,0.00021891,2]
[388670479,1759313444818,-1425.0,0.00021895,2]
[388670481,1759313444827,-1425.0,0.00021895,2]
[388670483,1759313444836,-5050.46927059,0.000219,2]
[388670485,1759313444845,-874.09,0.000219,7]
[388670487,1759313444854,-500.143412,0.000219,2]
[388670489,1759313444863,-1000.0,0.00021902,2]
[388670491,1759313444873,-1000.0,0.00021903,2]
[388670493,1759313444882,-1425.0,0.00021905,2]
[388670495,1759313444891,-156.87,0.00021907,2]
[388670497,1759313444900,-1425.0,0.00021912,2]
[388670499,1759313444910,-150.01,0.00021914,2]
[388670501,1759313444919,-150.46,0.00021914,2]
[388670503,1759313444928,-529.91,0.00021914,2]
[388670505,1759313444937,-1087.99212926,0.00021916,5]
[388670507,1759313444946,-1000.0,0.00021916,2]
[388670509,1759313444956,-1425.0,0.00021916,2]
[388670511,1759313444965,-179291.90640395,0.00021917,2]
[388670538,1759313445208,-19432.14270468,0.00021917,2]
[388670540,1759313445219,-572.11000004,0.00021917,2]
[388670544,1759313445250,-87383.88366541,0.00021917,2]
[388670546,1759313445259,-2426.60803581,0.00021917,2]
[388670548,1759313445268,-80592.69613278,0.00021917,2]
[388670555,1759313445322,-43644.74880728,0.00021917,2]
[388670557,1759313445337,-480.0,0.00021917,2]
[388670714,1759313446750,-17021.29314361,0.000217,2]
[388670716,1759313446761,-5593.95177878,0.000217,2]
[388670722,1759313446802,-546.03806591,0.000217,2]
[388670724,1759313446814,-39300.93946959,0.000217,2]
[388670727,1759313446837,-286.2225,0.000217,2]
[388670729,1759313446848,-15813.93388871,0.000217,2]
[388670732,1759313446859,-4146.4377723,0.000217,2]
[388670735,1759313446884,-12887.1833811,0.000217,2]
[388670737,1759313446894,-1000.0,0.00021761,2]
[388670739,1759313446904,-1000.0,0.00021812,2]
[388670741,1759313446913,-1000.0,0.00021898,2]
[388670743,1759313446922,-1000.0,0.0002191,2]
[388670745,1759313446932,-77739.977793,0.00021917,2]
[388670747,1759313446942,-1000.0,0.00021917,2]
[388670793,1759313447350,-804.8491909,0.00021917,2]
[388670796,1759313447373,-151.0,0.00021917,2]
[388670798,1759313447384,-153.00981254,0.00021917,2]
[388670800,1759313447395,-617.91,0.00021917,2]
[388670802,1759313447404,-806.49,0.00021917,2]
[388670804,1759313447413,-500.0,0.00021917,2]
[388670806,1759313447422,-500.0,0.00021917,2]
[388670808,1759313447432,-500.0,0.00021917,2]
[388670810,1759313447441,-609.28775284,0.00021917,2]
[388670812,1759313447450,-500.0,0.00021917,2]
[388670814,1759313447460,-500.0,0.00021917,2]
[388670816,1759313447470,-500.0,0.00021917,2]
[388670818,1759313447479,-500.0,0.00021917,2]
[388670820,1759313447488,-2368.33,0.00021917,2]
[388670822,1759313447497,-1282.84,0.00021917,2]
[388670825,1759313447507,-500.0,0.00021917,2]
[388670827,1759313447516,-500.0,0.00021917,2]
[388670829,1759313447525,-500.0,0.00021917,2]
[388670831,1759313447535,-1073.92,0.00021917,2]
[388670833,1759313447544,-752.27,0.00021917,2]
[388670835,1759313447553,-500.0,0.00021917,2]
[388670837,1759313447562,-500.0,0.00021917,2]
[388670839,1759313447572,-500.0,0.00021917,2]
[388670841,1759313447582,-1631.53,0.00021917,2]
[388670843,1759313447591,-500.0,0.00021917,2]
[388670845,1759313447601,-500.0,0.00021917,2]
[388670847,1759313447610,-500.0,0.00021917,2]
[388670849,1759313447619,-500.0,0.00021917,2]
[388670851,1759313447629,-500.0,0.00021917,2]
[388670853,1759313447638,-500.0,0.00021917,2]
[388670855,1759313447648,-500.0,0.00021917,2]
[388670857,1759313447657,-500.0,0.00021917,2]
[388670860,1759313447667,-808.03,0.00021917,2]
[388670862,1759313447677,-500.0,0.00021917,2]
[388670864,1759313447687,-520.8,0.00021917,2]
[388670866,1759313447697,-500.0,0.00021917,2]
[388670868,1759313447706,-500.0,0.00021917,2]
[388670870,1759313447716,-500.0,0.00021917,2]
[388670872,1759313447726,-500.0,0.00021917,2]
[388670874,1759313447735,-500.0,0.00021917,2]
[388670876,1759313447744,-195.21420996,0.00021917,2]
[388670878,1759313447753,-500.0,0.00021917,2]
[388670880,1759313447763,-500.0,0.00021917,2]
[388670881,1759313447772,-500.0,0.00021917,2]
[388670882,1759313447781,-500.0,0.00021917,2]
[388670883,1759313447791,-500.0,0.00021917,2]
[388670884,1759313447800,-500.0,0.00021917,2]
[388670885,1759313447810,-500.0,0.00021917,2]
[388670886,1759313447819,-500.0,0.00021917,2]
[388670887,1759313447828,-500.0,0.00021917,2]
[388670888,1759313447837,-797.94,0.00021917,2]
[388670889,1759313447847,-1066.33,0.00021917,2]
[388670890,1759313447856,-500.0,0.00021917,2]
[388670891,1759313447865,-500.0,0.00021917,2]
[388670892,1759313447875,-500.0,0.00021917,2]
[388670893,1759313447884,-821.25,0.00021917,2]
[388670894,1759313447894,-500.0,0.00021917,2]
[388670896,1759313447904,-500.0,0.00021917,2]
[388670898,1759313447914,-500.0,0.00021917,2]
[388670900,1759313447924,-845.6,0.00021917,2]
[388670902,1759313447933,-518.42,0.00021917,2]
[388670904,1759313447942,-500.0,0.00021917,2]
[388670906,1759313447953,-504.76219678,0.00021917,2]
[388670908,1759313447964,-503.61985578,0.00021917,2]
[388670910,1759313447973,-503.71,0.00021917,2]
[388670912,1759313447983,-405.50317701,0.00021917,2]
[388670914,1759313447994,-500.0,0.00021917,2]
[388670916,1759313448003,-592.42,0.00021917,2]
[388670918,1759313448012,-500.0,0.00021917,2]
[388670920,1759313448022,-554.64,0.00021917,2]
[388670922,1759313448031,-500.0,0.00021917,2]
[388670924,1759313448040,-500.0,0.00021917,2]
[388670926,1759313448050,-500.0,0.00021917,2]
[388670928,1759313448060,-405.84970617,0.00021917,2]
[388670930,1759313448069,-500.0,0.00021917,2]
[388670932,1759313448078,-500.0,0.00021917,2]
[388670934,1759313448087,-500.0,0.00021917,2]
[388670936,1759313448096,-500.0,0.00021917,2]
[388670938,1759313448106,-500.0,0.00021917,2]
[388670940,1759313448114,-844.69,0.00021917,2]
[388670942,1759313448124,-185.02999739,0.00021917,2]
[388670944,1759313448133,-437.99890843,0.00021917,2]
[388670946,1759313448142,-500.0,0.00021917,2]
[388670948,1759313448151,-633.48,0.00021917,2]
[388670950,1759313448161,-500.0,0.00021917,2]
[388670952,1759313448170,-500.0,0.00021917,2]
[388670954,1759313448179,-500.0,0.00021917,2]
[388670957,1759313448188,-500.0,0.00021917,2]
[388670959,1759313448198,-500.0,0.00021917,2]
[388670961,1759313448207,-500.0,0.00021917,2]
[388670963,1759313448215,-500.0,0.00021917,2]
[388670965,1759313448225,-829.23,0.00021917,2]
[388670966,1759313448234,-500.0,0.00021917,2]
[388670968,1759313448244,-500.0,0.00021917,2]
[388670971,1759313448253,-500.0,0.00021917,2]
[388670973,1759313448263,-500.0,0.00021917,2]
[388670975,1759313448273,-500.0,0.00021917,2]
[388670977,1759313448282,-1612.65,0.00021917,2]
[388670979,1759313448291,-500.0,0.00021917,2]
[388670981,1759313448301,-803.64,0.00021917,2]
[388670983,1759313448313,-504.88,0.00021917,2]
[388670985,1759313448322,-571.39,0.00021917,2]
[388670987,1759313448331,-500.0,0.00021917,2]
[388670989,1759313448340,-500.0,0.00021917,2]
[388670991,1759313448351,-744.77,0.00021917,2]
[388670993,1759313448360,-500.0,0.00021917,2]
[388670995,1759313448369,-500.0,0.00021917,2]
[388670997,1759313448381,-500.0,0.00021917,2]
[388670999,1759313448400,-500.0,0.00021917,2]
[388671001,1759313448409,-500.0,0.00021917,2]
[388671003,1759313448419,-629.48,0.00021917,2]
[388671005,1759313448428,-500.0,0.00021917,2]
[388671007,1759313448437,-638.89,0.00021917,2]
[388671009,1759313448446,-500.0,0.00021917,2]
[388671011,1759313448455,-500.0,0.00021917,2]
[388671013,1759313448464,-696.12,0.00021917,2]
[388671015,1759313448473,-500.0,0.00021917,2]
[388671017,1759313448482,-855.73,0.00021917,2]
[388671019,1759313448492,-500.0,0.00021917,2]
[388671021,1759313448501,-500.0,0.00021917,2]
[388671024,1759313448511,-718.97,0.00021917,2]
[388671026,1759313448520,-500.0,0.00021917,2]
[388671028,1759313448529,-400.0,0.00021917,2]
[388671030,1759313448539,-500.0,0.00021917,2]
[388671031,1759313448548,-500.0,0.00021917,2]
[388671033,1759313448556,-500.0,0.00021917,2]
[388671035,1759313448565,-500.0,0.00021917,2]
[388671037,1759313448574,-500.0,0.00021917,2]
[388671039,1759313448584,-500.0,0.00021917,2]
[388671041,1759313448593,-500.0,0.00021917,2]
[388671043,1759313448602,-500.0,0.00021917,2]
[388671045,1759313448611,-500.0,0.00021917,2]
[388671047,1759313448622,-500.0,0.00021917,2]
[388671049,1759313448631,-500.0,0.00021917,2]
[388671051,1759313448641,-500.0,0.00021917,2]
[388671053,1759313448650,-500.0,0.00021917,2]
[388671055,1759313448659,-500.0,0.00021917,2]
[388671057,1759313448668,-500.0,0.00021917,2]
[388671059,1759313448677,-500.0,0.00021917,2]
[388671061,1759313448687,-500.0,0.00021917,2]
[388671063,1759313448697,-500.0,0.00021917,2]
[388671065,1759313448707,-500.0,0.00021917,2]
[388671067,1759313448716,-500.0,0.00021917,2]
[388671070,1759313448726,-500.34802465,0.00021917,2]
[388671072,1759313448740,-831.24,0.00021917,2]
[388671074,1759313448750,-500.0,0.00021917,2]
[388671076,1759313448759,-500.0,0.00021917,2]
[388671078,1759313448768,-500.0,0.00021917,2]
[388671080,1759313448778,-1891.74,0.00021917,2]
[388671082,1759313448788,-500.0,0.00021917,2]
[388671084,1759313448798,-1157.63,0.00021917,2]
[388671086,1759313448807,-537.57,0.00021917,2]
[388671088,1759313448816,-500.0,0.00021917,2]
[388671090,1759313448826,-169.72921726,0.00021917,2]
[388671092,1759313448836,-821.66,0.00021917,2]
[388671094,1759313448845,-500.0,0.00021917,2]
[388671096,1759313448854,-667.75,0.00021917,2]
[388671098,1759313448864,-500.0,0.00021917,2]
[388671100,1759313448873,-200.0,0.00021917,2]
[388671102,1759313448883,-500.0,0.00021917,2]
[388671104,1759313448893,-500.0,0.00021917,2]
[388671107,1759313448903,-629.25886341,0.00021917,2]
[388671109,1759313448913,-500.0,0.00021917,2]
[388671111,1759313448922,-1248.1741715,0.00021917,2]
[388671113,1759313448931,-500.0,0.00021917,2]
[388671114,1759313448941,-500.0,0.00021917,2]
[388671116,1759313448950,-153.0829408,0.00021917,2]
[388671119,1759313448960,-500.0,0.00021917,2]
[388671121,1759313448974,-151.0,0.00021917,2]
[388671123,1759313448988,-151.0,0.00021917,2]
[388671125,1759313448998,-151.0,0.00021917,2]
[388671126,1759313449007,-151.0,0.00021917,2]
[388671129,1759313449017,-500.0,0.00021917,2]
[388671131,1759313449027,-1230.0,0.00021917,2]
[388671133,1759313449036,-1230.0,0.00021917,2]
[388671135,1759313449045,-151.0,0.00021917,2]
[388671137,1759313449054,-1230.0,0.00021917,2]
[388671139,1759313449063,-151.0,0.00021917,2]
[388671141,1759313449073,-1230.0,0.00021917,2]
[388671143,1759313449083,-167.82642616,0.00021917,2]
[388671145,1759313449092,-500.0,0.00021917,2]
[388671147,1759313449101,-620.94,0.00021917,2]
[388671149,1759313449110,-1361.34,0.00021917,2]
[388671151,1759313449120,-500.0,0.00021917,2]
[388671153,1759313449133,-500.0,0.00021917,2]
[388671155,1759313449144,-2265.14,0.00021917,2]
[388671157,1759313449153,-152.0,0.00021917,2]
[388671160,1759313449165,-152.0,0.00021917,2]
[388671162,1759313449174,-152.0,0.00021917,2]
[388671164,1759313449184,-2179.6,0.00021917,2]
[388671166,1759313449193,-500.0,0.00021917,2]
[388671168,1759313449203,-717.6,0.00021917,2]
[388671170,1759313449212,-500.0,0.00021917,2]
[388671172,1759313449222,-500.0,0.00021917,2]
[388671174,1759313449231,-500.0,0.00021917,2]
[388671176,1759313449241,-1768.39,0.00021917,2]
[388671178,1759313449251,-603.83,0.00021917,2]
[388671180,1759313449260,-522.97,0.00021917,2]
[388671182,1759313449273,-500.0,0.00021917,2]
[388671184,1759313449283,-1131.59,0.00021917,2]
[388671186,1759313449293,-500.0,0.00021917,2]
[388671188,1759313449303,-500.0,0.00021917,2]
[388671190,1759313449317,-500.0,0.00021917,2]
[388671192,1759313449327,-500.0,0.00021917,2]
[388671194,1759313449337,-1766.66,0.00021917,2]
[388671196,1759313449347,-500.0,0.00021917,2]
[388671198,1759313449358,-701.52,0.00021917,2]
[388671201,1759313449368,-500.0,0.00021917,2]
[388671203,1759313449379,-151.0,0.00021917,2]
[388671205,1759313449389,-151.0,0.00021917,2]
[388671207,1759313449399,-151.0,0.00021917,2]
[388671209,1759313449408,-253.271648,0.00021917,2]
[388671211,1759313449419,-154.318482,0.00021917,2]
[388671213,1759313449429,-1785.1,0.00021917,2]
[388671215,1759313449438,-500.0,0.00021917,2]
[388671217,1759313449447,-500.0,0.00021917,2]
[388671219,1759313449457,-869.86,0.00021917,2]
[388671221,1759313449466,-1386.62,0.00021917,2]
[388671223,1759313449476,-151.0,0.00021917,2]
[388671225,1759313449485,-151.0,0.00021917,2]
[388671227,1759313449494,-151.0,0.00021917,2]
[388671229,1759313449504,-500.0,0.00021917,2]
[388671231,1759313449513,-151.0,0.00021917,2]
[388671233,1759313449522,-500.0,0.00021917,2]
[388671236,1759313449535,-562.99,0.00021917,2]
[388671238,1759313449545,-202.26938,0.00021917,2]
[388671240,1759313449554,-605.42018541,0.00021917,2]
[388671242,1759313449564,-500.0,0.00021917,2]
[388671244,1759313449573,-640.36,0.00021917,2]
[388671246,1759313449582,-500.0,0.00021917,2]
[388671248,1759313449592,-500.0,0.00021917,2]
[388671250,1759313449601,-500.0,0.00021917,2]
[388671252,1759313449611,-500.0,0.00021917,2]
[388671254,1759313449620,-761.06,0.00021917,2]
[388671256,1759313449631,-500.0,0.00021917,2]
[388671258,1759313449641,-500.0,0.00021917,2]
[388671260,1759313449651,-500.0,0.00021917,2]
[388671262,1759313449661,-151.0,0.00021917,2]
[388671265,1759313449670,-500.0,0.00021917,2]
[388671267,1759313449680,-500.0,0.00021917,2]
[388671269,1759313449689,-584.6,0.00021917,2]
[388671271,1759313449699,-500.0,0.00021917,2]
[388671273,1759313449709,-1270.69,0.00021917,2]
[388671275,1759313449719,-700.92,0.00021917,2]
[388671277,1759313449729,-500.0,0.00021917,2]
[388671279,1759313449738,-500.0,0.00021917,2]
[388671281,1759313449747,-812.39,0.00021917,2]
[388671283,1759313449756,-500.0,0.00021917,2]
[388671285,1759313449768,-151.0,0.00021917,2]
[388671301,1759313449915,-151.0,0.00021917,2]
[388671303,1759313449925,-152.32366,0.00021917,2]
[388671305,1759313449934,-151.0,0.00021917,2]
[388671306,1759313449943,-269.737418,0.00021917,2]
[388671308,1759313449952,-1400.65,0.00021917,2]
[388671310,1759313449962,-500.0,0.00021917,2]
[388671312,1759313449971,-500.0,0.00021917,2]
[388671314,1759313449981,-500.0,0.00021917,2]
[388671316,1759313449991,-500.0,0.00021917,2]
[388671318,1759313450000,-500.0,0.00021917,2]
[388671320,1759313450010,-1136.0,0.00021917,2]
[388671322,1759313450019,-500.0,0.00021917,2]
[388671324,1759313450029,-500.0,0.00021917,2]
[388671326,1759313450041,-1185.61,0.00021917,2]
[388671328,1759313450050,-726.21,0.00021917,2]
[388671330,1759313450060,-500.0,0.00021917,2]
[388671332,1759313450069,-887.04,0.00021917,2]
[388671334,1759313450078,-885.85,0.00021917,2]
[388671336,1759313450088,-500.0,0.00021917,2]
[388671338,1759313450097,-711.44,0.00021917,2]
[388671340,1759313450108,-855.54,0.00021917,2]
[388671342,1759313450117,-1436.45,0.00021917,2]
[388671344,1759313450127,-1366.07,0.00021917,2]
[388671346,1759313450136,-500.0,0.00021917,2]
[388671348,1759313450145,-524.93,0.00021917,2]
[388671350,1759313450154,-646.64,0.00021917,2]
[388671352,1759313450163,-500.0,0.00021917,2]
[388671355,1759313450182,-500.0,0.00021917,2]
[388671357,1759313450192,-500.0,0.00021917,2]
[388671359,1759313450201,-1236.26,0.00021917,2]
[388671361,1759313450211,-458.20008044,0.00021917,2]
[388671363,1759313450220,-500.0,0.00021917,2]
[388671365,1759313450231,-500.0,0.00021917,2]
[388671367,1759313450240,-936.05,0.00021917,2]
[388671369,1759313450253,-151.0,0.00021917,2]
[388671371,1759313450262,-201.062383,0.00021917,2]
[388671373,1759313450271,-500.0,0.00021917,2]
[388671375,1759313450282,-500.0,0.00021917,2]
[388671378,1759313450291,-500.0,0.00021917,2]
[388671380,1759313450300,-546.85,0.00021917,2]
[388671382,1759313450312,-500.0,0.00021917,2]
[388671384,1759313450322,-500.0,0.00021917,2]
[388671385,1759313450332,-1463.24,0.00021917,2]
[388671388,1759313450342,-777.07,0.00021917,2]
[388671390,1759313450352,-500.0,0.00021917,2]
[388671391,1759313450363,-500.0,0.00021917,2]
[388671394,1759313450373,-500.0,0.00021917,2]
[388671396,1759313450383,-500.0,0.00021917,2]
[388671397,1759313450395,-500.0,0.00021917,2]
[388671400,1759313450405,-500.0,0.00021917,2]
[388671401,1759313450414,-500.0,0.00021917,2]